bitfinex/quotes_ETHUSD_20241104
["timestamp","ask_amount","ask_price","bid_price","bid_amount"]
[1730763974607,4.17153,2397.2,2397.0,0.65792678]
[1730763974945,7.17145,2397.3,2397.1,0.65792668]
[1730763975145,7.17153,2397.2,2397.0,1e-07]
[1730763975441,7.1717,2397.1,2397.0,1e-07]
[1730763975756,7.1717,2397.1,2397.0,0.65808532]
[1730763976342,7.1717,2397.1,2397.0,0.25310797]
[1730763977336,4.17129,2397.4,2397.0,0.25317277]
[1730763977542,4.1717,2397.1,2397.0,0.25317277]
[1730763977707,4.1717,2397.1,2397.0,0.25321976]
[1730763977906,8.006026,2397.1,2397.0,1e-07]
[1730763978104,11.276526,2397.1,2397.0,1e-07]
[1730763978413,4.17375,2396.0,2395.8,0.8396101]
[1730763978612,3.0,2396.0,2395.9,0.65853442]
[1730763978813,7.17362,2396.0,2395.9,0.65853442]
[1730763979021,3.0,2396.0,2395.9,0.65853442]
[1730763979415,7.17338,2396.2,2395.9,0.65853442]
[1730763979622,7.17346,2396.1,2396.0,0.25327615]
[1730763980320,3.0,2396.1,2396.0,0.25327615]
[1730763980726,7.17362,2396.0,2395.8,0.8396101]
[1730763980909,4.17379,2395.9,2395.8,0.0594101]
[1730763981106,4.17379,2395.9,2395.8,0.71725944]
[1730763981711,4.17379,2395.9,2395.8,0.31242276]
[1730763981906,4.17379,2395.9,2395.8,0.0594101]
[1730763982258,4.17379,2395.9,2395.8,0.31234675]
[1730763982749,7.17379,2395.9,2395.8,0.0594101]
[1730763983107,3.0,2396.1,2395.8,0.0594101]
[1730763983430,7.17354,2396.1,2395.9,0.25262938]
[1730763983669,4.17365,2396.0,2395.8,0.0594101]
[1730763984264,11.34712,2396.1,2395.8,0.0594101]
[1730763985078,0.18294514,2396.0,2395.8,0.0594101]
[1730763985764,4.35671514,2396.0,2395.8,0.0594101]
[1730763986077,4.17379,2395.9,2395.8,0.0594101]
[1730763986377,5.09238665,2396.0,2395.8,0.0594101]
[1730763986378,4.17377,2396.0,2395.8,0.0594101]
[1730763986576,0.18294514,2395.9,2395.8,0.0594101]
[1730763986965,3.0,2396.3,2395.9,0.7892]
[1730763987276,4.17236,2396.8,2396.2,4.17324]
[1730763987447,4.17236,2396.8,2396.3,1.45892097]
[1730763987448,4.17243,2396.7,2396.3,1.45892097]
[1730763987782,4.17206,2396.9,2396.3,1.206524]
[1730763987948,1.604026,2397.1,2396.4,0.25237474]
[1730763988149,4.17237,2396.8,2396.3,4.96225]
[1730763988362,1.604026,2397.1,2396.3,0.7892]
[1730763988363,4.17264,2396.6,2396.3,0.7892]
[1730763988567,4.17244,2396.7,2396.3,0.7892]
[1730763989083,4.17263,2396.6,2396.3,0.7892]
[1730763989552,4.17283,2396.5,2396.0,0.8257]
[1730763989751,4.17283,2396.5,2396.1,0.25243441]
[1730763990071,4.17283,2396.5,2396.0,5.50509901]
[1730763990382,4.17251,2396.7,2396.1,4.42575428]
[1730763990552,4.17251,2396.7,2396.2,4.4256576]
[1730763990553,3.0,2396.6,2396.2,4.4256576]
[1730763990739,3.0,2396.6,2396.2,5.16626366]
[1730763990935,4.17283,2396.5,2396.0,5.50514901]
[1730763991142,3.0,2396.6,2396.1,0.25244108]
[1730763991344,3.0,2396.8,2396.4,4.99929]
[1730763992091,7.17223,2396.8,2396.4,0.8265]
[1730763992898,4.1724,2396.7,2396.4,0.8265]
[1730763993075,4.17257,2396.6,2396.2,0.8265]
[1730763993252,4.17261,2396.6,2396.2,0.8265]
[1730763993593,3.0,2396.7,2396.3,4.17304]
[1730763994552,7.17242,2396.7,2396.2,4.99961]
[1730763994971,3.0,2396.7,2396.3,4.17298]
[1730763995178,3.0,2396.8,2396.3,5.090239]
[1730763995379,3.0,2396.8,2396.4,4.17288]
[1730763995653,4.29220651,2397.1,2396.4,0.7868]
[1730763995862,4.17188,2397.0,2396.6,4.17254]
[1730763996183,4.17188,2397.0,2396.5,4.17272]
[1730763996484,7.17179,2397.1,2396.5,4.17272]
[1730763996661,7.17179,2397.1,2396.6,4.17257]
[1730763996662,11.34363,2397.1,2396.6,4.17257]
[1730763996859,4.17188,2397.0,2396.6,4.17257]
[1730763997606,4.17188,2397.0,2396.5,4.17273]
[1730763997883,4.17283,2396.5,2396.1,0.774]
[1730763998265,4.17296,2396.4,2396.1,0.774]
[1730763999292,0.834579,2396.4,2395.9,0.77]
[1730763999492,7.17379,2395.9,2395.8,0.0594101]
[1730764000118,13.53451812,2395.9,2395.8,0.0594101]
[1730764002042,8.71330719,2395.9,2395.8,0.0594101]
[1730764002347,7.90730719,2395.9,2395.8,0.0594101]
[1730764005139,0.18351719,2395.9,2395.8,0.0594101]
[1730764006629,4.35730719,2395.9,2395.8,0.0594101]
[1730764007530,0.18351719,2395.9,2395.8,0.0594101]
[1730764007734,4.35730719,2395.9,2395.8,0.0594101]
[1730764007936,4.60952072,2395.9,2395.8,0.0594101]
[1730764008245,4.79287438,2395.9,2395.8,0.0594101]
[1730764010208,7.35714366,2395.9,2395.8,0.0594101]
[1730764011023,3.18335366,2395.9,2395.8,0.0594101]
[1730764012045,0.18335366,2395.9,2395.8,0.0594101]
[1730764012422,4.35714366,2395.9,2395.8,0.0594101]
[1730764012613,7.35714366,2395.9,2395.8,0.0594101]
[1730764012813,3.18335366,2395.9,2395.8,0.0594101]
[1730764013068,7.35714366,2395.9,2395.8,0.0594101]
[1730764014423,3.18335366,2395.9,2395.8,0.0594101]
[1730764014835,7.35714366,2395.9,2395.8,0.0594101]
[1730764015511,0.18335366,2395.9,2395.8,0.0594101]
[1730764016017,0.18272216,2395.9,2395.8,0.0594101]
[1730764016437,4.35651216,2395.9,2395.8,0.0594101]
[1730764016644,0.18272216,2395.9,2395.8,0.0594101]
[1730764016851,7.17347,2396.1,2395.8,0.0594101]
[1730764017031,0.18272216,2395.9,2395.8,0.0594101]
[1730764017256,7.17347,2396.1,2395.8,0.0594101]
[1730764017257,11.34705,2396.1,2395.8,0.0594101]
[1730764017428,0.18272216,2395.9,2395.8,0.0594101]
[1730764017633,11.34705,2396.1,2395.8,0.0594101]
[1730764017932,0.18272216,2395.9,2395.8,0.0594101]
[1730764018461,11.34705,2396.1,2395.8,0.0594101]
[1730764018462,4.17366,2396.0,2395.8,0.0594101]
[1730764018698,0.18272216,2395.9,2395.8,0.0594101]
[1730764019356,4.35651216,2395.9,2395.8,0.0594101]
[1730764019955,7.90651216,2395.9,2395.8,0.0594101]
[1730764020258,9.19871867,2395.9,2395.8,0.0594101]
[1730764020461,10.69879306,2395.9,2395.8,0.0594101]
[1730764021205,9.40658655,2395.9,2395.8,0.0594101]
[1730764021468,12.8193495,2395.9,2395.8,1e-07]
[1730764021818,10.23478655,2395.9,2395.8,1e-07]
[1730764022044,9.40658655,2395.9,2395.8,1e-07]
[1730764022252,10.1490394,2395.9,2395.8,1e-07]
[1730764022417,10.6990394,2395.9,2395.8,1e-07]
[1730764022822,8.85658655,2395.9,2395.8,1e-07]
[1730764023030,7.35651216,2395.9,2395.8,1e-07]
[1730764023733,3.18272216,2395.9,2395.8,1e-07]
[1730764023935,7.35651216,2395.9,2395.8,1e-07]
[1730764024432,3.18272216,2395.9,2395.8,1e-07]
[1730764029206,0.18272216,2395.9,2395.8,0.25400131]
[1730764029401,0.18272216,2395.9,2395.8,5.44695544]
[1730764029699,2.15504272,2396.4,2395.8,5.36348177]
[1730764029700,5.46550285,2396.4,2395.8,5.36348177]
[1730764029864,4.17316,2396.3,2395.9,0.66038354]
[1730764030190,4.17316,2396.3,2396.0,0.25400121]
[1730764030494,4.17316,2396.3,2395.8,4.78656719]
[1730764030651,5.46550285,2396.4,2395.9,5.40171732]
[1730764030652,4.29245285,2396.4,2395.9,5.40171732]
[1730764030858,1.29245285,2396.5,2396.2,4.17326]
[1730764031093,5.89579451,2396.6,2396.2,4.17326]
[1730764031094,5.46505285,2396.6,2396.2,4.17326]
[1730764031296,5.46505285,2396.6,2396.1,4.17344]
[1730764031502,5.46505285,2396.6,2396.2,4.42704334]
[1730764031697,5.46505285,2396.6,2396.2,4.17325]
[1730764031698,4.1726,2396.6,2396.2,4.17325]
[1730764031908,1.29245285,2396.7,2396.3,0.08345773]
[1730764032200,1.29245285,2396.8,2396.4,5.18878081]
[1730764032413,1.29245285,2396.9,2396.4,0.7622]
[1730764032567,4.17233,2396.8,2396.4,0.7622]
[1730764033078,8.34466,2396.8,2396.4,0.7622]
[1730764033412,4.17233,2396.8,2396.4,0.7622]
[1730764033576,3.0,2396.7,2396.4,0.7622]
[1730764033975,4.1726,2396.6,2396.4,0.7622]
[1730764034366,4.1726,2396.6,2396.0,0.7845]
[1730764034367,4.17303,2396.4,2396.0,0.7845]
[1730764034710,4.17303,2396.4,2396.1,0.25339545]
[1730764034878,4.17315,2396.3,2396.0,0.7845]
[1730764035203,4.17303,2396.4,2396.0,0.7845]
[1730764035573,8.3461,2396.4,2396.0,0.7845]
[1730764035760,4.17303,2396.4,2396.0,0.7845]
[1730764036164,8.3461,2396.4,2396.0,0.7845]
[1730764036574,4.17303,2396.4,2396.0,0.7845]
[1730764037321,4.29245285,2396.6,2396.0,1.28031901]
[1730764037478,1.29245285,2396.7,2396.4,4.17289]
[1730764037681,5.89543451,2396.8,2396.2,0.7543]
[1730764037682,5.46469285,2396.8,2396.2,0.7543]
[1730764037907,4.17262,2396.6,2396.2,0.7543]
[1730764038622,4.17262,2396.6,2396.2,4.92756]
[1730764038909,4.17241,2396.7,2396.2,4.92756]
[1730764039274,7.17223,2396.8,2396.3,4.17307]
[1730764039614,3.0,2396.8,2396.4,0.08345328]
[1730764039914,4.17225,2396.8,2396.3,4.17296]
[1730764040422,4.17225,2396.8,2396.2,1.664387]
[1730764040423,3.0,2396.9,2396.2,1.664387]
[1730764040620,4.17225,2396.8,2396.3,4.42624827]
[1730764040775,4.17225,2396.8,2396.3,4.1731]
[1730764041798,5.7220167,2397.0,2396.2,1.664387]
[1730764041799,4.17248,2396.7,2396.2,1.664387]
[1730764042004,4.17248,2396.7,2396.2,4.92743]
[1730764042387,3.0,2396.8,2396.3,4.25655742]
[1730764042591,3.0,2396.8,2396.4,4.67385574]
[1730764042787,5.46463285,2396.9,2396.2,4.92743]
[1730764042788,8.46464285,2396.9,2396.2,4.92743]
[1730764042979,4.17248,2396.7,2396.2,4.92743]
[1730764043380,8.34499,2396.7,2396.2,4.92743]
[1730764043581,4.17248,2396.7,2396.2,4.92743]
[1730764043855,4.17248,2396.7,2396.1,4.1733]
[1730764043856,4.88280754,2396.7,2395.9,4.95754]
[1730764044038,3.0,2396.3,2395.9,4.95754]
[1730764044250,4.17288,2396.5,2395.9,4.95754]
[1730764044427,3.0,2396.4,2396.0,4.17357]
[1730764044618,7.17294,2396.4,2395.9,9.13123]
[1730764045149,0.18324241,2396.3,2395.9,4.95754]
[1730764045720,0.18324241,2396.3,2395.9,5.87069301]
[1730764045954,0.18324241,2396.3,2396.0,4.17362]
[1730764047161,0.18324241,2396.3,2396.0,4.25699228]
[1730764047526,0.18324241,2396.3,2396.0,4.17353]
[1730764048926,0.18324241,2396.3,2396.2,0.7728]
[1730764049272,0.18354701,2396.3,2396.2,5.94150925]
[1730764049563,3.0,2396.6,2396.2,5.858047]
[1730764049728,1.29245285,2396.9,2396.5,4.1726]
[1730764049931,5.46459285,2396.9,2396.5,4.67780516]
[1730764050472,5.46435285,2397.0,2396.5,4.67784516]
[1730764050838,4.17207,2396.9,2396.5,0.50520516]
[1730764051062,3.0,2396.8,2396.4,4.9689]
[1730764051233,3.0,2396.9,2396.5,4.17274]
[1730764052273,1.29245285,2397.0,2396.6,4.17249]
[1730764052627,4.17173,2397.1,2396.7,4.17239]
[1730764052831,5.46418285,2397.1,2396.7,4.17239]
[1730764053058,4.17173,2397.1,2396.7,4.17239]
[1730764053795,1.29245285,2397.2,2396.8,4.96821]
[1730764053949,1.29245285,2397.3,2396.9,4.17203]
[1730764054132,4.17149,2397.3,2396.8,9.14029]
[1730764054479,5.46375285,2397.4,2396.9,4.17199]
[1730764054837,9.63507285,2397.4,2396.9,4.17199]
[1730764055070,7.17137,2397.3,2396.9,4.17199]
[1730764055247,7.17137,2397.3,2396.8,9.14028]
[1730764055465,7.17137,2397.3,2396.8,4.96814]
[1730764055654,7.17137,2397.3,2396.8,9.14028]
[1730764055839,7.17137,2397.3,2396.8,4.96814]
[1730764056174,7.17137,2397.3,2396.9,4.17204]
[1730764056375,8.46374285,2397.4,2396.9,4.17204]
[1730764056559,8.46374285,2397.4,2396.9,4.17203]
[1730764056560,7.17129,2397.4,2396.9,4.17203]
[1730764056878,3.0,2397.2,2396.8,9.14028]
[1730764057048,3.0,2397.2,2396.8,10.1377583]
[1730764057367,3.0,2397.2,2396.8,5.9656183]
[1730764058888,4.1724,2396.7,2396.2,0.7895]
[1730764059090,4.1724,2396.7,2396.0,5.36865155]
[1730764059428,4.1724,2396.7,2396.1,0.25362953]
[1730764059429,4.17295,2396.4,2396.1,0.25362953]
[1730764059586,4.95587,2396.3,2395.8,4.1739501]
[1730764059786,4.95587,2396.3,2395.9,0.25365189]
[1730764060028,0.1844606,2396.2,2395.8,4.1739501]
[1730764060338,4.95587,2396.3,2395.8,8.3478201]
[1730764060626,0.1844606,2396.1,2395.8,8.3478201]
[1730764060926,4.95587,2396.3,2395.8,8.3478201]
[1730764060927,0.18413382,2396.0,2395.8,8.3478201]
[1730764061121,4.95587,2396.3,2395.8,8.3478201]
[1730764061285,0.18413382,2395.9,2395.8,4.1738701]
[1730764061619,0.18413382,2395.9,2395.8,4.42748133]
[1730764061799,4.95587,2396.3,2395.8,4.42748133]
[1730764061994,0.18413382,2395.9,2395.8,4.1738701]
[1730764062302,7.9558,2396.3,2395.9,4.1737]
[1730764062730,3.7827,2396.3,2395.9,4.1737]
[1730764064452,7.95582,2396.3,2395.9,4.1737]
[1730764064820,3.7827,2396.3,2395.9,8.34738]
[1730764065011,3.7827,2396.3,2395.9,4.17368]
[1730764065216,3.7827,2396.3,2395.8,1e-07]
[1730764065217,7.95589,2396.3,2395.8,1e-07]
[1730764065412,4.17336,2396.2,2395.8,1e-07]
[1730764067448,4.17346,2396.1,2395.8,1e-07]
[1730764067759,4.70753429,2396.3,2395.8,1e-07]
[1730764067760,4.17379,2395.9,2395.8,1e-07]
[1730764068051,8.008531,2395.9,2395.8,1e-07]
[1730764068252,3.7545,2395.9,2395.8,1e-07]
[1730764068438,3.0,2395.9,2395.8,1e-07]
[1730764068951,7.72379,2395.9,2395.8,1e-07]
[1730764069317,9.01624285,2395.9,2395.8,1e-07]
[1730764072416,3.0,2395.9,2395.8,1e-07]
[1730764073922,9.22040285,2396.1,2395.8,1e-07]
[1730764074321,7.92795,2396.1,2395.8,1e-07]
[1730764074625,3.0,2395.9,2395.8,1e-07]
[1730764075027,3.18281139,2395.9,2395.8,1e-07]
[1730764075652,7.35660139,2395.9,2395.8,1e-07]
[1730764076363,10.06641981,2395.9,2395.8,1e-07]
[1730764076665,11.35887266,2395.9,2395.8,1e-07]
[1730764077967,11.78961432,2395.9,2395.8,1e-07]
[1730764078480,10.06641981,2395.9,2395.8,1e-07]
[1730764078984,11.78961432,2395.9,2395.8,1e-07]
[1730764080970,10.06641981,2395.9,2395.8,1e-07]
[1730764081150,11.78961432,2395.9,2395.8,1e-07]
[1730764081471,10.06641981,2395.9,2395.8,1e-07]
[1730764081664,11.78961432,2395.9,2395.8,1e-07]
[1730764082574,12.65293565,2395.9,2395.8,1e-07]
[1730764082736,10.06641981,2395.9,2395.8,1e-07]
[1730764083178,12.65169159,2395.9,2395.8,1e-07]
[1730764084772,13.08642158,2395.9,2395.8,1e-07]
[1730764085439,10.5011498,2395.9,2395.8,1e-07]
[1730764085876,8.67376067,2395.9,2395.8,1e-07]
[1730764086081,7.31604225,2395.9,2395.8,1e-07]
[1730764086382,6.45056981,2395.9,2395.8,1e-07]
[1730764086538,4.35660139,2395.9,2395.8,1e-07]
[1730764087778,7.90660139,2395.9,2395.8,1e-07]
[1730764089740,8.67420139,2395.9,2395.8,1e-07]
[1730764090092,15.1552883,2395.9,2395.8,1e-07]
[1730764090268,12.6502883,2395.9,2395.8,1e-07]
[1730764091290,12.65017905,2395.9,2395.8,1e-07]
[1730764092148,12.21948391,2395.9,2395.8,1e-07]
[1730764092457,11.78857128,2395.9,2395.8,1e-07]
[1730764092670,10.49643213,2395.9,2395.8,1e-07]
[1730764092874,12.21948391,2395.9,2395.8,1e-07]
[1730764093181,11.78864226,2395.9,2395.8,1e-07]
[1730764093958,7.35660139,2395.9,2395.8,1e-07]
[1730764094162,4.35660139,2395.9,2395.8,1e-07]
[1730764094771,0.18281139,2395.9,2395.8,1e-07]
[1730764094972,4.35660139,2395.9,2395.8,1e-07]
[1730764095310,4.90660139,2395.9,2395.8,1e-07]
[1730764096500,0.18281139,2395.9,2395.8,4.9349701]
[1730764096724,0.18281139,2395.9,2395.8,1.50814531]
[1730764097008,0.17668385,2395.9,2395.8,5.68211531]
[1730764097208,0.17668385,2395.9,2395.8,5.6821153]
[1730764097375,4.08260754,2396.5,2395.8,0.7610001]
[1730764097697,0.8119,2396.6,2395.8,0.7610001]
[1730764097698,0.17668385,2395.9,2395.8,0.7610001]
[1730764097896,0.55,2396.1,2395.8,4.9349501]
[1730764098263,0.17687774,2396.0,2395.9,4.17379]
[1730764098465,3.0,2396.4,2395.9,4.17379]
[1730764098770,4.1725,2396.7,2396.1,4.94063]
[1730764098771,0.17700448,2396.3,2396.1,4.94063]
[1730764098973,4.17235,2396.8,2396.3,4.1731]
[1730764099314,4.17261,2396.6,2396.1,4.94064]
[1730764100194,3.0,2396.5,2396.1,4.94064]
[1730764100387,3.0,2396.6,2396.2,4.17326]
[1730764101181,3.0,2396.6,2396.2,5.1756634]
[1730764101407,3.0,2396.6,2396.2,9.3488234]
[1730764101718,3.0,2396.6,2396.2,5.1756434]
[1730764101921,3.0,2396.6,2396.2,8.34634]
[1730764102211,3.0,2396.6,2396.3,4.97894]
[1730764102409,3.0,2396.8,2396.4,4.17282]
[1730764102778,3.0,2397.0,2396.5,4.17275]
[1730764102978,3.0,2397.0,2396.6,4.17257]
[1730764103183,4.17181,2397.1,2396.6,5.083149]
[1730764103486,5.46364013,2397.3,2396.6,5.083149]
[1730764103689,5.46364013,2397.3,2396.9,0.7944]
[1730764103690,8.3429,2397.3,2396.9,0.7944]
[1730764103887,4.17143,2397.3,2396.9,0.7944]
[1730764105101,3.17727283,2397.2,2396.9,0.7944]
[1730764105307,3.17727283,2397.2,2396.9,1.291051]
[1730764106381,0.17727283,2397.2,2396.9,1.291051]
[1730764106711,0.17866659,2397.1,2397.0,4.17187]
[1730764107016,3.0,2397.4,2397.0,4.17187]
[1730764107017,0.55,2397.4,2397.0,4.17187]
[1730764107227,0.55,2397.4,2397.2,0.7978]
[1730764107509,4.17079,2397.7,2397.2,0.7978]
[1730764107510,4.7209,2397.6,2397.2,0.7978]
[1730764107885,0.55,2397.6,2397.2,0.7978]
[1730764108212,3.55,2397.4,2397.2,0.7978]
[1730764110009,0.55,2397.4,2397.2,0.7978]
[1730764111499,4.7212,2397.4,2397.2,0.7978]
[1730764111704,0.55,2397.4,2397.2,0.7978]
[1730764113005,7.17102,2397.5,2397.2,0.7978]
[1730764113522,0.55,2397.7,2397.2,1.711926]
[1730764113710,0.55,2397.7,2397.2,9.1406]
[1730764114030,0.55,2397.7,2397.2,4.96918]
[1730764114544,3.0,2397.5,2397.2,0.7978]
[1730764114735,4.17093,2397.6,2396.8,0.7619]
[1730764114736,4.17156,2397.2,2396.8,0.7619]
[1730764114929,4.666956,2397.2,2396.8,0.7619]
[1730764115097,4.1717,2397.1,2396.8,0.7619]
[1730764115495,4.666956,2397.2,2396.8,0.7619]
[1730764116803,3.0,2397.1,2396.6,0.7735]
[1730764117016,0.55,2397.0,2396.6,4.94599]
[1730764117223,3.55,2397.0,2396.6,4.94599]
[1730764117614,3.0,2397.0,2396.6,9.11847]
[1730764117796,7.667016,2397.2,2396.7,4.1723]
[1730764117998,0.55,2397.1,2396.7,4.1723]
[1730764119044,0.55,2397.3,2396.9,4.17196]
[1730764119231,3.0,2397.2,2396.8,4.1721]
[1730764120035,0.17875597,2397.1,2396.8,4.1721]
[1730764120605,0.17875597,2397.1,2396.8,5.083905]
[1730764120806,0.17875597,2397.1,2397.0,4.97308]
[1730764121122,4.97864,2397.6,2397.0,4.97308]
[1730764121123,4.17093,2397.6,2397.0,4.97308]
[1730764121327,0.17891985,2397.1,2397.0,4.97308]
[1730764121632,4.17072,2397.7,2397.2,4.17143]
[1730764121951,5.079962,2397.7,2397.2,8.34284]
[1730764122241,3.17891985,2397.6,2397.2,8.34284]
[1730764122410,3.17891985,2397.6,2397.2,4.17141]
[1730764122837,7.34977985,2397.6,2397.2,4.17141]
[1730764123045,7.34977985,2397.6,2397.1,4.1717]
[1730764123439,3.17891985,2397.6,2397.2,4.17145]
[1730764124142,3.17891985,2397.6,2397.1,4.1717]
[1730764124143,7.34977985,2397.6,2397.1,4.1717]
[1730764124307,3.17891985,2397.6,2397.2,4.17153]
[1730764125344,7.34976985,2397.6,2397.1,4.1717]
[1730764125540,3.17891985,2397.6,2397.2,4.17152]
[1730764125948,3.17891985,2397.6,2397.2,5.085962]
[1730764127163,3.17891985,2397.6,2397.3,0.2535995]
[1730764127446,3.17891985,2397.6,2397.2,5.085962]
[1730764127605,3.17891985,2397.6,2397.3,0.2535988]
[1730764127804,3.17891985,2397.6,2397.2,5.085962]
[1730764128010,3.17891985,2397.6,2397.3,1.17936615]
[1730764128249,3.17891985,2397.6,2397.4,0.25359995]
[1730764128453,3.17891985,2397.6,2397.3,0.9257662]
[1730764128655,0.17891985,2397.6,2397.4,1.00375531]
[1730764128954,0.17891985,2397.6,2397.5,4.42476531]
[1730764129110,3.0,2397.9,2397.5,5.36768535]
[1730764129451,3.0,2397.9,2397.6,0.25375531]
[1730764129606,3.0,2397.9,2397.4,4.92102]
[1730764129813,3.0,2397.9,2397.5,0.25378091]
[1730764130011,3.0,2397.9,2397.5,4.171]
[1730764130234,3.0,2397.9,2397.6,4.42458637]
[1730764130442,3.0,2397.9,2397.7,0.25385425]
[1730764130636,3.0,2397.9,2397.5,4.17099]
[1730764130858,3.0,2397.9,2397.6,0.25385297]
[1730764131021,3.0,2397.9,2397.5,5.08855149]
[1730764131022,3.0,2397.9,2397.7,0.25385297]
[1730764131227,3.0,2397.9,2397.5,5.08855149]
[1730764131484,3.0,2397.9,2397.6,0.25393461]
[1730764131667,3.0,2397.9,2397.7,0.25393461]
[1730764131967,3.0,2397.9,2397.5,5.08855149]
[1730764132173,3.0,2397.9,2397.6,1.2524447]
[1730764132371,3.0,2397.9,2397.7,0.25393528]
[1730764132529,7.72031,2397.9,2397.8,0.25393528]
[1730764132965,3.55,2397.9,2397.8,0.25393528]
[1730764133456,3.55,2397.9,2397.8,0.25401837]
[1730764133662,3.55,2397.9,2397.6,0.59219664]
[1730764134030,3.55,2397.9,2397.7,0.25401778]
[1730764134230,3.55,2397.9,2397.8,0.25401778]
[1730764135074,3.72976878,2397.9,2397.8,0.25401778]
[1730764135458,0.17976878,2397.9,2397.8,1.05311778]
[1730764135654,0.17976878,2397.9,2397.8,5.63002116]
[1730764135858,3.7587,2398.3,2397.9,4.17028]
[1730764136041,3.0,2398.3,2398.0,4.83051345]
[1730764136242,3.8235,2398.5,2398.1,0.25401778]
[1730764136441,3.8235,2398.5,2398.0,4.17011]
[1730764136442,7.99279,2398.5,2398.2,0.25401778]
[1730764136777,7.99279,2398.5,2398.0,4.17011]
[1730764136778,4.16945,2398.4,2398.0,4.17012]
[1730764137072,7.99278,2398.5,2398.1,0.25390357]
[1730764137260,7.99278,2398.5,2398.2,0.25390357]
[1730764137458,0.55,2398.3,2398.2,0.25390357]
[1730764137673,0.55,2398.3,2398.2,0.25379133]
[1730764137908,4.7196,2398.4,2398.0,0.59492771]
[1730764138109,4.7196,2398.4,2398.1,0.25381131]
[1730764138300,4.7196,2398.4,2398.0,0.59492771]
[1730764138497,3.0,2398.5,2398.1,0.25374234]
[1730764138665,7.16938,2398.5,2398.2,0.25374234]
[1730764138870,4.16945,2398.4,2397.9,8.34038]
[1730764139073,4.16945,2398.4,2398.0,1.26569273]
[1730764139311,4.16945,2398.4,2398.1,0.25373902]
[1730764139485,4.16945,2398.4,2398.0,1.01195371]
[1730764139687,4.16945,2398.4,2398.1,0.25365905]
[1730764140001,4.16945,2398.4,2398.0,1.01195371]
[1730764140208,4.16945,2398.4,2398.1,0.25364933]
[1730764140374,4.16945,2398.4,2398.0,1.01195371]
[1730764140709,4.16945,2398.4,2398.1,0.2536455]
[1730764141016,4.16945,2398.4,2398.0,1.01195371]
[1730764141211,4.16945,2398.4,2398.1,0.25363253]
[1730764141543,4.16945,2398.4,2398.0,1.01195371]
[1730764141710,4.16945,2398.4,2398.1,0.25359065]
[1730764141916,3.55,2398.3,2397.8,0.7991]
[1730764142208,3.55,2398.3,2397.2,4.98413]
[1730764142209,4.17078,2397.7,2397.2,4.98413]
[1730764142382,4.17078,2397.7,2397.3,0.25365048]
[1730764142383,4.17088,2397.6,2397.3,0.25365048]
[1730764142706,4.17088,2397.6,2397.4,0.25365048]
[1730764142917,4.17088,2397.6,2397.3,0.94095605]
[1730764143072,4.17088,2397.6,2397.4,0.25364842]
[1730764143366,4.17088,2397.6,2397.3,0.94095605]
[1730764143574,0.55,2397.7,2397.4,0.2536754]
[1730764143785,0.55,2397.7,2397.4,4.17117]
[1730764144413,4.72068,2397.7,2397.3,5.11229605]
[1730764144707,4.72068,2397.7,2397.3,0.94095605]
[1730764145905,0.55,2397.7,2397.3,0.94095605]
[1730764146121,0.55,2397.7,2397.3,5.11229605]
[1730764146709,0.55,2397.7,2397.3,0.94095605]
[1730764146909,4.72069,2397.7,2397.2,4.98411]
[1730764147113,4.72069,2397.7,2396.7,4.50541453]
[1730764147114,8.47813,2397.4,2397.3,0.25377496]
[1730764147408,3.0,2397.1,2396.7,0.87884364]
[1730764147621,0.55,2397.2,2396.8,0.25380853]
[1730764147799,0.55,2397.2,2396.8,0.52214885]
[1730764148000,0.55,2397.2,2396.9,0.25379193]
[1730764148346,4.29221013,2397.4,2397.1,4.17157]
[1730764148646,3.0,2397.5,2397.1,9.17468]
[1730764148841,3.0,2397.5,2397.1,1.75731169]
[1730764149023,3.0,2397.5,2397.2,0.25379884]
[1730764149193,3.0,2397.5,2397.1,5.92900169]
[1730764149395,3.0,2397.5,2397.2,0.25385095]
[1730764149636,3.0,2397.5,2397.1,5.92900169]
[1730764149832,7.17102,2397.5,2397.2,0.84675485]
[1730764150002,7.17102,2397.5,2397.1,5.92900169]
[1730764150003,4.17122,2397.4,2397.1,1.75731169]
[1730764150205,4.35051224,2397.4,2396.9,4.17191]
[1730764150413,4.35051224,2397.4,2397.0,0.25389043]
[1730764150615,4.35051224,2397.4,2397.1,0.25388891]
[1730764150815,4.35051224,2397.4,2396.9,4.95061]
[1730764151104,0.17929224,2397.4,2397.1,4.17165]
[1730764151311,0.17929224,2397.4,2397.2,0.45089656]
[1730764151537,4.29221013,2397.6,2397.3,4.17127]
[1730764151849,5.08671013,2397.7,2397.3,4.98157]
[1730764152049,3.0,2397.7,2397.4,4.17117]
[1730764152213,4.29221013,2397.7,2397.4,4.17117]
[1730764152409,4.29221013,2397.7,2397.4,0.96038466]
[1730764153047,1.29221013,2397.8,2397.5,4.17097]
[1730764153555,1.29221013,2397.9,2397.5,4.17097]
[1730764154119,4.29221013,2397.9,2397.5,4.17097]
[1730764155016,8.46254013,2397.9,2397.5,4.17097]
[1730764155356,8.46254013,2397.9,2397.6,4.68386547]
[1730764155357,1.29221013,2397.9,2397.6,4.68386547]
[1730764155855,1.29221013,2398.0,2397.6,4.68386547]
[1730764156230,5.46238013,2398.0,2397.6,4.68386547]
[1730764156606,1.29221013,2398.0,2397.6,8.85460547]
[1730764156865,5.46254013,2397.9,2397.6,0.51313547]
[1730764157033,5.46254013,2397.9,2397.1,4.17164]
[1730764157034,4.17068,2397.7,2397.1,4.17164]
[1730764157232,4.17102,2397.5,2397.1,0.8091]
[1730764157552,5.46323013,2397.5,2397.1,0.8091]
[1730764157932,1.29221013,2397.5,2397.1,4.98079]
[1730764158131,1.29221013,2397.5,2397.2,0.915255]
[1730764159750,1.29221013,2397.5,2396.9,0.7559]
[1730764159751,4.1714,2397.3,2396.9,0.7559]
[1730764159955,4.17161,2397.2,2396.7,5.33451145]